fUST/lending_fUST_20250529
["ID","MTS","AMOUNT","RATE_DAILY","PERIOD"]
[362841052,1748484641877,-448.5000392,0.00020546,2]
[362841053,1748484641886,-439.80104381,0.00020546,2]
[362841054,1748484641896,-1112.71,0.00020546,2]
[362841055,1748484641906,-430.0,0.00020546,2]
[362841056,1748484641915,-434.37216938,0.00020547,2]
[362841057,1748484641925,-696.10672369,0.00020579,2]
[362841058,1748484641935,-641.00857584,0.0002059,3]
[362841059,1748484641944,-500.0,0.00020595,2]
[362841060,1748484641953,-501.3427574,0.00020628,2]
[362841061,1748484641963,-550.878,0.00020699,2]
[362841062,1748484641972,-842.5625,0.00020705,2]
[362841063,1748484641982,-160.0,0.00020705,2]
[362841064,1748484641991,-160.0,0.00020705,2]
[362841065,1748484642001,-160.0,0.00020705,2]
[362841066,1748484642011,-160.0,0.00020705,2]
[362841067,1748484642020,-229.26895353,0.00020705,2]
[362841068,1748484642030,-423.31762986,0.00020705,2]
[362841069,1748484642039,-160.0,0.00020705,2]
[362841070,1748484642049,-212.70147903,0.00020705,2]
[362841071,1748484642059,-160.0,0.00020706,2]
[362841072,1748484642068,-430.0,0.00020718,2]
[362841073,1748484642078,-430.0,0.00020718,2]
[362841074,1748484642088,-430.0,0.00020718,2]
[362841075,1748484642098,-1222.18,0.00020718,2]
[362841076,1748484642107,-430.0,0.00020718,2]
[362841077,1748484642116,-430.0,0.00020719,2]
[362841078,1748484642126,-430.0,0.00020719,2]
[362841079,1748484642136,-430.0,0.00020719,2]
[362841080,1748484642145,-1397.82,0.00020719,2]
[362841081,1748484642155,-1105.41,0.00020719,2]
[362841082,1748484642164,-430.0,0.00020719,2]
[362841083,1748484642174,-509.45332546,0.00020719,2]
[362841084,1748484642183,-477.29907525,0.00020719,2]
[362841085,1748484642193,-454.57750771,0.00020719,2]
[362841086,1748484642203,-487.65257868,0.00020719,2]
[362841087,1748484642211,-430.0,0.00020719,2]
[362841088,1748484642221,-430.0,0.00020719,2]
[362841089,1748484642230,-467.58745214,0.00020719,2]
[362841090,1748484642240,-430.0,0.00020719,2]
[362841091,1748484642250,-430.0,0.0002072,2]
[362841092,1748484642259,-430.0,0.0002072,2]
[362841093,1748484642269,-430.0,0.0002072,2]
[362841094,1748484642278,-430.0,0.0002072,2]
[362841095,1748484642288,-430.0,0.0002072,2]
[362841096,1748484642297,-430.0,0.0002072,2]
[362841097,1748484642306,-430.0,0.0002072,2]
[362841098,1748484642315,-437.25014878,0.0002072,2]
[362841099,1748484642324,-466.54,0.0002072,2]
[362841100,1748484642334,-430.0,0.0002072,2]
[362841101,1748484642343,-430.0,0.0002072,2]
[362841102,1748484642352,-430.0,0.0002072,2]
[362841103,1748484642361,-430.0,0.00020721,2]
[362841104,1748484642370,-430.0,0.00020721,2]
[362841105,1748484642379,-231.53618492,0.00020721,2]
[362841106,1748484642389,-430.0,0.00020721,2]
[362841107,1748484642398,-324.90808978,0.00020721,2]
[362841108,1748484642407,-641.00857584,0.00020762,3]
[362841109,1748484642421,-384.8716264,0.0002082,2]
[362841110,1748484642430,-711.78,0.0002082,2]
[362841111,1748484642439,-430.0,0.0002082,2]
[362841112,1748484642450,-430.0,0.0002082,2]
[362841113,1748484642461,-430.0,0.0002082,2]
[362841114,1748484642471,-807.77,0.0002082,2]
[362841115,1748484642480,-612.54,0.0002082,2]
[362841116,1748484642490,-1112.71,0.0002082,2]
[362841117,1748484642500,-430.0,0.0002082,2]
[362841118,1748484642510,-151.0,0.00020821,2]
[362841119,1748484642520,-151.0,0.00020821,2]
[362841120,1748484642529,-151.0,0.00020821,2]
[362841121,1748484642539,-4903.37,0.00020928,2]
[362841122,1748484642548,-641.00857584,0.00020934,4]
[362841123,1748484642558,-340.96525395,0.00020992,2]
[362841124,1748484642567,-457.55463369,0.00020992,2]
[362841125,1748484642576,-430.0,0.00020992,2]
[362841126,1748484642585,-391.70496437,0.00020992,2]
[362841127,1748484642693,-830.47503563,0.00020992,2]
[362841128,1748484642703,-430.0,0.00020992,2]
[362841129,1748484642713,-430.0,0.00020993,2]
[362841130,1748484642722,-430.0,0.00020993,2]
[362841131,1748484642732,-1397.82,0.00020993,2]
[362841132,1748484642741,-1105.41,0.00020993,2]
[362841133,1748484642750,-430.0,0.00020993,2]
[362841134,1748484642760,-430.0,0.00020993,2]
[362841135,1748484642769,-430.0,0.00020993,2]
[362841136,1748484642779,-430.0,0.00020993,2]
[362841137,1748484642788,-322.49072865,0.00020994,2]
[362841138,1748484642798,-282.20404482,0.00020994,2]
[362841139,1748484642811,-442.96062513,0.00020994,2]
[362841140,1748484642820,-430.0,0.00020994,2]
[362841141,1748484642830,-225.11618922,0.00020994,2]
[362841142,1748484642841,-430.0,0.00020994,2]
[362841143,1748484642851,-430.0,0.00020994,2]
[362841144,1748484642860,-466.54,0.00020994,2]
[362841145,1748484642870,-430.0,0.00020994,2]
[362841146,1748484642879,-430.0,0.00020994,2]
[362841147,1748484642889,-430.0,0.00020994,2]
[362841148,1748484642899,-214.89560876,0.00020995,2]
[362841149,1748484642910,-430.0,0.00020995,2]
[362841150,1748484642919,-256.13426259,0.00020995,2]
[362841151,1748484642930,-511.54144007,0.00021019,2]
[362841152,1748484642940,-1000.0,0.00021019,2]
[362841153,1748484642952,-207.4,0.0002103,2]
[362841155,1748484642963,-1077.1181603,0.00021044,2]
[362841157,1748484642973,-711.78,0.00021094,2]
[362841159,1748484642983,-430.0,0.00021094,2]
[362841161,1748484642993,-430.0,0.00021094,2]
[362841162,1748484643003,-430.0,0.00021094,2]
[362841163,1748484643012,-807.77,0.00021094,2]
[362841164,1748484643022,-612.54,0.00021094,2]
[362841165,1748484643032,-1112.71,0.00021094,2]
[362841166,1748484643042,-430.0,0.00021094,2]
[362841167,1748484643052,-641.00857584,0.00021107,4]
[362841168,1748484643062,-501.73897437,0.00021143,2]
[362841169,1748484643072,-1000.0,0.00021164,2]
[362841170,1748484643082,-430.0,0.00021266,2]
[362841171,1748484643092,-1222.18,0.00021266,2]
[362841172,1748484643102,-430.0,0.00021266,2]
[362841173,1748484643112,-430.0,0.00021267,2]
[362841174,1748484643122,-430.0,0.00021267,2]
[362841176,1748484643132,-1397.82,0.00021267,2]
[362841177,1748484643143,-1105.41,0.00021267,2]
[362841178,1748484643154,-430.0,0.00021267,2]
[362841179,1748484643164,-430.0,0.00021267,2]
[362841180,1748484643175,-430.0,0.00021267,2]
[362841181,1748484643185,-510.55449407,0.00021267,2]
[362841182,1748484643196,-430.0,0.00021268,2]
[362841183,1748484643206,-430.0,0.00021268,2]
[362841184,1748484643215,-430.0,0.00021268,2]
[362841185,1748484643225,-273.64263987,0.00021268,2]
[362841186,1748484643238,-192.89736013,0.00021268,2]
[362841187,1748484643247,-430.0,0.00021268,2]
[362841188,1748484643257,-473.56,0.00021268,2]
[362841189,1748484643266,-430.0,0.00021269,2]
[362841190,1748484643276,-641.00857584,0.00021279,5]
[362841191,1748484643286,-711.78,0.00021368,2]
[362841192,1748484643296,-430.0,0.00021368,2]
[362841193,1748484643306,-430.0,0.00021368,2]
[362841194,1748484643315,-430.0,0.00021368,2]
[362841195,1748484643325,-807.77,0.00021368,2]
[362841196,1748484643335,-612.54,0.00021368,2]
[362841197,1748484643345,-1112.71,0.00021368,2]
[362841198,1748484643354,-430.0,0.00021368,2]
[362841199,1748484643364,-151.0,0.00021369,2]
[362841200,1748484643374,-151.0,0.00021369,2]
[362841202,1748484643384,-151.0,0.00021369,2]
[362841203,1748484643393,-1690.23295736,0.00021378,2]
[362841204,1748484643405,-1309.76704264,0.00021378,2]
[362841205,1748484643416,-641.00857584,0.00021452,5]
[362841206,1748484643426,-1999.6,0.00021452,2]
[362841207,1748484643436,-430.0,0.0002154,2]
[362841208,1748484643447,-1222.18,0.0002154,2]
[362841209,1748484643458,-430.0,0.0002154,2]
[362841210,1748484643467,-430.0,0.00021541,2]
[362841211,1748484643478,-430.0,0.00021541,2]
[362841212,1748484643488,-1397.82,0.00021541,2]
[362841213,1748484643499,-1105.41,0.00021541,2]
[362841214,1748484643508,-329.36363868,0.00021541,2]
[362841215,1748484643518,-430.0,0.00021541,2]
[362841216,1748484643528,-430.0,0.00021541,2]
[362841217,1748484643538,-405.49512213,0.00021542,2]
[362841218,1748484643554,-1009.13986329,0.00018616,2]
[362841219,1748484643566,-307.47042321,0.00018616,2]
[362841220,1748484643576,-46.68056328,0.00021542,2]
[362841221,1748484643585,-429.42603532,0.00021542,2]
[362841222,1748484643595,-430.0,0.00021542,2]
[362841223,1748484643604,-466.54,0.00021542,2]
[362841224,1748484643614,-430.0,0.00021542,2]
[362841225,1748484643624,-144.43651111,0.00021543,2]
[362841226,1748484643635,-285.56348889,0.00021543,2]
[362841227,1748484643644,-309.42056005,0.00021567,2]
[362841229,1748484643656,-561.84778779,0.00021567,2]
[362841230,1748484643668,-128.73165216,0.00021567,2]
[362841231,1748484643679,-641.00857584,0.00021624,5]
[362841232,1748484643688,-711.78,0.00021642,2]
[362841233,1748484643698,-196.32509494,0.00021642,2]
[362841234,1748484643710,-233.67490506,0.00021642,2]
[362841235,1748484643720,-430.0,0.00021642,2]
[362841237,1748484643730,-430.0,0.00021642,2]
[362841239,1748484643739,-807.77,0.00021642,2]
[362841241,1748484643749,-612.54,0.00021642,2]
[362841243,1748484643759,-1112.71,0.00021642,2]
[362841244,1748484643769,-430.0,0.00021642,2]
[362841245,1748484643779,-151.0,0.00021669,2]
[362841246,1748484643788,-64.91417714,0.0002177,2]
[362841247,1748484643800,-309.08582286,0.0002177,2]
[362841248,1748484643810,-88.80804277,0.00021796,2]
[362841249,1748484643825,-1154.09037201,0.00021796,2]
[362841250,1748484643886,-430.0,0.00019896,2]
[362841251,1748484643895,-300.0,0.00019897,2]
[362841252,1748484643905,-160.0,0.00020416,2]
[362841253,1748484643915,-117.0,0.00021796,2]
[362841270,1748484646669,-420.0,0.00021668,2]
[362841271,1748484646679,-496.52158522,0.00021796,2]
[362841272,1748484646688,-571.16882614,0.00021797,6]
[362841273,1748484646702,-69.8397497,0.00021797,6]
[362841274,1748484646711,-629.27318146,0.00021802,2]
[362841275,1748484646720,-1897.48,0.00021806,3]
[362841276,1748484646729,-1110.82,0.00021806,3]
[362841286,1748484646739,-798.52,0.00021806,3]
[362841288,1748484646846,-399.26,0.00021806,3]
[362841290,1748484646859,-523.78,0.00021806,3]
[362841293,1748484646869,-505.0,0.00021806,3]
[362841295,1748484646878,-160.0,0.00021806,3]
[362841297,1748484646888,-842.5625,0.00021806,3]
[362841298,1748484646897,-160.0,0.00021806,3]
[362841301,1748484646907,-430.0,0.00021814,2]
[362841302,1748484646916,-1222.18,0.00021814,2]
[362841304,1748484646926,-430.0,0.00021814,2]
[362841306,1748484646935,-430.0,0.00021815,2]
[362841308,1748484646944,-1397.82,0.00021815,2]
[362841310,1748484646953,-1105.41,0.00021815,2]
[362841312,1748484646963,-430.0,0.00021815,2]
[362841314,1748484646972,-430.0,0.00021815,2]
[362841316,1748484646982,-430.0,0.00021816,2]
[362841318,1748484646991,-466.54,0.00021816,2]
[362841320,1748484647001,-430.0,0.00021816,2]
[362841322,1748484647010,-430.0,0.00021817,2]
[362841324,1748484647020,-7355.06,0.00021879,2]
[362841326,1748484647029,-3000.0,0.000219,2]
[362841328,1748484647038,-3000.0,0.0002191,2]
[362841330,1748484647047,-711.78,0.00021916,2]
[362841332,1748484647057,-430.0,0.00021916,2]
[362841334,1748484647067,-430.0,0.00021916,2]
[362841336,1748484647076,-430.0,0.00021916,2]
[362841338,1748484647085,-807.77,0.00021916,2]
[362841340,1748484647095,-612.54,0.00021916,2]
[362841342,1748484647104,-1112.71,0.00021916,2]
[362841344,1748484647114,-430.0,0.00021916,2]
[362841346,1748484647123,-500.0,0.00021917,2]
[362841348,1748484647133,-151.0,0.00021919,7]
[362841350,1748484647142,-156.294207,0.00021919,7]
[362841352,1748484647152,-153.949415,0.00021919,7]
[362841354,1748484647162,-3000.0,0.0002192,2]
[362841356,1748484647172,-1449.38194621,0.0002193,2]
[362841443,1748485071690,161.844662,0.00013699,2]
[362841454,1748485721341,507.84358332,0.0002,120]
[362841479,1748485832695,-7266.13774792,0.0001887,2]
[362841480,1748485832806,-17307.76163318,0.0001887,2]
[362841481,1748485832817,-1013.3802893,0.000189,2]
[362841482,1748485832826,-498.45888075,0.00019178,2]
[362841483,1748485832835,-430.0,0.00019178,2]
[362841484,1748485832846,-430.0,0.00019178,2]
[362841485,1748485832855,-451.4319265,0.00019178,2]
[362841486,1748485832864,-430.0,0.00019178,2]
[362841487,1748485832874,-973.33,0.00019178,2]
[362841488,1748485832883,-430.0,0.00019178,2]
[362841489,1748485832892,-430.0,0.00019178,2]
[362841490,1748485832903,-182.729327,0.00019178,2]
[362841491,1748485832913,-430.0,0.00019452,2]
[362841492,1748485832922,-430.0,0.00019452,2]
[362841493,1748485832931,-430.0,0.00019452,2]
[362841494,1748485832940,-973.33,0.00019452,2]
[362841495,1748485832950,-430.0,0.00019452,2]
[362841496,1748485832959,-430.0,0.00019452,2]
[362841497,1748485832968,-430.0,0.00019726,2]
[362841498,1748485832977,-973.33,0.00019726,2]
[362841499,1748485832986,-430.0,0.00019726,2]
[362841500,1748485832996,-430.0,0.00019726,2]
[362841501,1748485833006,-214.41065495,0.00019793,2]
[362841502,1748485833018,-1132.85515736,0.00019795,2]
[362841503,1748485833028,-435.67266306,0.00019873,2]
[362841504,1748485833038,-500.0,0.00019891,2]
[362841505,1748485833048,-581.58794542,0.00019891,2]
[362841506,1748485833058,-500.0,0.00019891,2]
[362841507,1748485833069,-500.0,0.00019891,2]
[362841508,1748485833078,-500.0,0.00019891,2]
[362841509,1748485833088,-530.25254538,0.00019891,2]
[362841510,1748485833098,-195.52186608,0.00019891,2]
[362841511,1748485833108,-626.19177754,0.00019891,2]
[362841512,1748485833118,-500.0,0.00019891,2]
[362841513,1748485833128,-500.0,0.00019891,2]
[362841514,1748485833139,-179506.26018848,0.00019892,2]
[362841515,1748485833151,-1272.54478092,0.00019892,2]
[362841516,1748485833163,-450.93427427,0.00019892,2]
[362841517,1748485833175,-513.58858519,0.00019892,2]
[362841518,1748485833187,-325.05563696,0.00019892,2]
[362841519,1748485833199,-5430.97661189,0.00019892,2]
[362841520,1748485833215,-318.56528198,0.00019892,2]
[362841565,1748485838691,-467.632255,0.00019178,2]
[362841570,1748485838702,-430.0,0.00019178,2]
[362841573,1748485838711,-500.0,0.00019451,2]
[362841575,1748485838720,-191.7066886,0.00019451,2]
[362841577,1748485838730,-626.39314965,0.00019451,2]
[362841579,1748485838741,-443.40992427,0.00019452,2]
[362841581,1748485838750,-89434.69506031,0.00019892,2]
[362841583,1748485838759,-16427.78688637,0.00019893,3]
[362841585,1748485838770,-42514.34354823,0.00019893,2]
[362841587,1748485838781,-447.84074957,0.00019894,2]
[362841589,1748485838791,-451.74921103,0.00019894,2]
[362841591,1748485838800,-455.64094807,0.00019894,2]
[362841593,1748485838814,-430.0,0.00019894,2]
[362841595,1748485838824,-430.0,0.00019894,2]
[362841597,1748485838833,-417.61584057,0.00019894,2]
[362841599,1748485838843,-415.5124785,0.00019894,2]
[362841601,1748485838854,-432.39381647,0.00019894,2]
[362841603,1748485838863,-430.0,0.00019894,2]
[362841605,1748485838872,-1219.14,0.00019894,2]
[362841607,1748485838882,-430.0,0.00019894,2]
[362841609,1748485838894,-430.0,0.00019894,2]
[362841611,1748485838903,-436.53858466,0.00019894,2]
[362841613,1748485838912,-424.11361612,0.00019894,2]
[362841615,1748485838922,-430.0,0.00019894,2]
[362841617,1748485838932,-853.24,0.00019894,2]
[362841619,1748485838941,-430.0,0.00019894,2]
[362841621,1748485838950,-430.0,0.00019894,2]
[362841623,1748485838959,-430.0,0.00019894,2]
[362841625,1748485838968,-430.0,0.00019894,2]
[362841627,1748485838978,-430.0,0.00019894,2]
[362841629,1748485838987,-430.0,0.00019894,2]
[362841631,1748485838996,-430.0,0.00019894,2]
[362841633,1748485839006,-550.0711865,0.00019894,2]
[362841635,1748485839016,-430.0,0.00019894,2]
[362841637,1748485839028,-430.0,0.00019894,2]
[362841639,1748485839039,-430.0,0.00019894,2]
[362841641,1748485839050,-435.25040341,0.00019894,2]
[362841643,1748485839061,-437.1291183,0.00019894,2]
[362841645,1748485839072,-430.0,0.00019894,2]
[362841647,1748485839086,-430.0,0.00019894,2]
[362841649,1748485839095,-435.84050464,0.00019894,2]
[362841652,1748485839105,-430.0,0.00019894,2]
[362841654,1748485839115,-463.14419734,0.00019894,2]
[362841656,1748485839125,-430.0,0.00019894,2]
[362841658,1748485839135,-430.0,0.00019894,2]
[362841660,1748485839143,-430.0,0.00019894,2]
[362841662,1748485839153,-458.12561333,0.00019894,2]
[362841664,1748485839163,-430.0,0.00019894,2]
[362841666,1748485839172,-430.0,0.00019894,2]
[362841668,1748485839181,-430.0,0.00019894,2]
[362841670,1748485839191,-430.0,0.00019894,2]
[362841672,1748485839201,-489.66550259,0.00019894,2]
[362841674,1748485839210,-430.0,0.00019894,2]
[362841676,1748485839220,-501.97125824,0.00019894,2]
[362841678,1748485839229,-430.0,0.00019894,2]
[362841680,1748485839238,-190.2455167,0.00019894,2]
[362841682,1748485839248,-430.0,0.00019894,2]
[362841684,1748485839258,-430.0,0.00019894,2]
[362841686,1748485839270,-648.33064866,0.00019895,2]
[362841688,1748485839279,-439.64517547,0.00019895,2]
[362841690,1748485839289,-430.0,0.00019895,2]
[362841692,1748485839299,-459.4382747,0.00019895,2]
[362841693,1748485839308,-430.0,0.00019895,2]
[362841696,1748485839318,-435.76838371,0.00019895,2]
[362841697,1748485839327,-430.0,0.00019895,2]
[362841700,1748485839337,-472.90538885,0.00019895,2]
[362841702,1748485839347,-430.0,0.00019895,2]
[362841704,1748485839356,-430.0,0.00019895,2]
[362841706,1748485839365,-430.0,0.00019895,2]
[362841707,1748485839374,-430.0,0.00019895,2]
[362841709,1748485839384,-430.0,0.00019895,2]
[362841711,1748485839393,-267.46021702,0.00019895,2]
[362841713,1748485839403,-430.0,0.00019895,2]
[362841715,1748485839412,-430.0,0.00019895,2]
[362841717,1748485839421,-466.058039,0.00019895,2]
[362841719,1748485839431,-430.0,0.00019895,2]
[362841722,1748485839442,-430.0,0.00019895,2]
[362841724,1748485839452,-430.0,0.00019895,2]
[362841726,1748485839461,-248.85897535,0.00019895,2]
[362841728,1748485839470,-430.0,0.00019895,2]
[362841730,1748485839480,-430.0,0.00019895,2]
[362841732,1748485839489,-430.0,0.00019895,2]
[362841734,1748485839498,-430.0,0.00019895,2]
[362841736,1748485839508,-438.14006029,0.00019896,2]
[362841738,1748485839519,-448.54498822,0.00019896,2]
[362841740,1748485839529,-443.28852935,0.00019896,2]
[362841742,1748485839538,-442.62415875,0.00019896,2]
[362841744,1748485839547,-375.57020865,0.00019896,2]
[362841746,1748485839557,-416.38726602,0.00019896,2]
[362841747,1748485839566,-436.51738418,0.00019896,2]
[362841748,1748485839576,-448.19246998,0.00019896,2]
[362841749,1748485839586,-430.0,0.00019896,2]
[362841750,1748485839596,-464.12490726,0.00019896,2]
[362841751,1748485839606,-439.10259243,0.00019896,2]
[362841752,1748485839615,-436.82395891,0.00019896,2]
[362841753,1748485839625,-434.78601092,0.00019896,2]
[362841754,1748485839635,-438.38289887,0.00019896,2]
[362841755,1748485839644,-430.0,0.00019896,2]
[362841756,1748485839653,-430.0,0.00019896,2]
[362841757,1748485839663,-549.30935665,0.00019896,2]
[362841758,1748485839672,-497.58539568,0.00019896,2]
[362841759,1748485839682,-217.44,0.00019896,2]
[362841760,1748485839691,-445.85260338,0.00019896,2]
[362841761,1748485839701,-430.0,0.00019896,2]
[362841762,1748485839709,-444.79412715,0.00019896,2]
[362841763,1748485839719,-499.83698707,0.00019896,2]
[362841764,1748485839728,-430.0,0.00019896,2]
[362841766,1748485839737,-433.47096525,0.00019896,2]
[362841768,1748485839746,-430.0,0.00019896,2]
[362841770,1748485839755,-439.38179493,0.00019896,2]
[362841772,1748485839763,-440.5044559,0.00019896,2]
[362841774,1748485839774,-430.0,0.00019896,2]
[362841776,1748485839785,-445.92335713,0.00019896,2]
[362841778,1748485839793,-503.15187568,0.00019896,2]
[362841780,1748485839803,-441.95115847,0.00019896,2]
[362841782,1748485839812,-439.69243974,0.00019896,2]
[362841784,1748485839826,-430.0,0.00019896,2]
[362841786,1748485839835,-438.52132585,0.00019896,2]
[362841788,1748485839844,-779.1,0.00019896,2]
[362841790,1748485839854,-430.0,0.00019896,2]
[362841792,1748485839863,-320.21682698,0.00019896,2]
[362841794,1748485839873,-430.0,0.00019896,2]
[362841796,1748485839889,-471.99,0.00019896,2]
[362841798,1748485839908,-430.0,0.00019896,2]
[362841800,1748485839918,-556.43,0.00019896,2]
[362841802,1748485839928,-448.41938041,0.00019896,2]
[362841804,1748485839938,-151.80397328,0.00019896,2]
[362841806,1748485839947,-430.0,0.00019896,2]
[362841808,1748485839956,-395.46345094,0.00019896,2]
[362841810,1748485839966,-741.81,0.00019896,2]
[362841812,1748485839975,-503.46559812,0.00019896,2]
[362841814,1748485839984,-430.0,0.00019896,2]
[362841816,1748485839993,-453.22558873,0.00019896,2]
[362841818,1748485840003,-430.0,0.00019898,2]
[362841820,1748485840013,-509.75603692,0.00019898,2]
[362841822,1748485840024,-482.89524203,0.000199,2]
[362841824,1748485840033,-227.41444053,0.0002,5]
[362841826,1748485840042,-158.33,0.0002,2]
[362841828,1748485840052,-430.0,0.0002,2]
[362841830,1748485840061,-973.33,0.0002,2]
[362841832,1748485840071,-430.0,0.0002,2]
[362841834,1748485840080,-430.0,0.0002,2]
[362841836,1748485840090,-1000.0,0.00020068,2]
[362841838,1748485840101,-482.89524186,0.00020072,2]
[362841840,1748485840110,-504.66641701,0.00020093,2]
[362841842,1748485840120,-505.14559696,0.00020093,2]
[362841844,1748485840129,-500.0,0.00020093,2]
[362841846,1748485840138,-2212.93,0.00020148,2]
[362841848,1748485840148,-430.0,0.00020168,2]
[362841850,1748485840157,-430.0,0.00020168,2]
[362841852,1748485840167,-1219.14,0.00020168,2]
[362841854,1748485840177,-440.30353415,0.00020168,2]
[362841857,1748485840188,-442.76917691,0.00020168,2]
[362841859,1748485840197,-430.0,0.00020168,2]
[362841861,1748485840207,-853.24,0.00020168,2]
[362841863,1748485840216,-430.0,0.00020168,2]
[362841865,1748485840226,-430.0,0.00020168,2]
[362841867,1748485840235,-440.39124539,0.00020168,2]
[362841870,1748485840245,-430.0,0.00020168,2]
[362841872,1748485840255,-430.0,0.00020168,2]
[362841874,1748485840264,-430.0,0.00020168,2]
[362841876,1748485840275,-438.82674591,0.00020168,2]
[362841878,1748485840286,-430.0,0.00020168,2]
[362841880,1748485840295,-436.73316147,0.00020168,2]
[362841882,1748485840305,-430.0,0.00020168,2]
[362841884,1748485840314,-430.0,0.00020168,2]
[362841886,1748485840323,-430.0,0.00020168,2]
[362841889,1748485840333,-430.0,0.00020168,2]
[362841891,1748485840343,-430.0,0.00020168,2]
[362841893,1748485840352,-430.0,0.00020169,2]
[362841895,1748485840361,-443.07175336,0.00020169,2]
[362841897,1748485840371,-430.0,0.00020169,2]
[362841900,1748485840380,-430.0,0.00020169,2]
[362841902,1748485840390,-430.0,0.00020169,2]
[362841904,1748485840399,-430.0,0.00020169,2]
[362841906,1748485840408,-440.84648897,0.00020169,2]
[362841908,1748485840418,-430.0,0.00020169,2]
[362841910,1748485840428,-430.0,0.00020169,2]
[362841912,1748485840438,-430.0,0.00020169,2]
[362841914,1748485840447,-430.0,0.00020169,2]
[362841916,1748485840457,-430.0,0.0002017,2]
[362841918,1748485840467,-430.0,0.0002017,2]
[362841920,1748485840476,-430.0,0.0002017,2]
[362841922,1748485840485,-430.0,0.0002017,2]
[362841924,1748485840495,-430.0,0.0002017,2]
[362841926,1748485840504,-471.99,0.0002017,2]
[362841928,1748485840513,-430.0,0.0002017,2]
[362841930,1748485840524,-556.43,0.0002017,2]
[362841932,1748485840533,-375.98725003,0.0002017,2]
[362841934,1748485840542,-741.81,0.0002017,2]
[362841936,1748485840551,-430.0,0.0002017,2]
[362841938,1748485840561,-482.89524186,0.00020245,2]
[362841940,1748485840570,-500.0,0.00020262,2]
[362841942,1748485840579,-427.1703995,0.00020262,2]
[362841944,1748485840588,-607.95,0.0002027,3]
[362841946,1748485840598,-433.63,0.0002027,3]
[362841948,1748485840607,-216.82,0.0002027,3]
[362841950,1748485840616,-430.0,0.00020273,2]
[362841952,1748485840626,-973.33,0.00020273,2]
[362841954,1748485840635,-430.0,0.00020273,2]
[362841956,1748485840644,-430.0,0.00020273,2]
[362841958,1748485840654,-208.33,0.00020279,2]
[362841960,1748485840663,-23789.41035415,0.0002028,2]
[362841962,1748485840674,-502.12348826,0.00020293,2]
[362841964,1748485840683,-500.0,0.00020293,2]
[362841966,1748485840692,-1132.85515734,0.00020319,2]
[362841968,1748485840702,-623.67696814,0.00020327,2]
[362841970,1748485840712,-500.0,0.00020369,2]
[362841972,1748485840721,-608.88509455,0.00020369,2]
[362841974,1748485840731,-482.89524186,0.00020417,3]
[362841976,1748485840740,-430.0,0.00020442,2]
[362841978,1748485840750,-1219.14,0.00020442,2]
[362841980,1748485840759,-430.0,0.00020442,2]
[362841996,1748485840871,-853.24,0.00020442,2]
[362841999,1748485840881,-430.0,0.00020442,2]
[362842004,1748485840891,-163.96,0.00020442,2]
[362842008,1748485840901,-430.0,0.00020442,2]
[362842011,1748485840911,-430.0,0.00020442,2]
[362842014,1748485840920,-171.42199575,0.00020442,2]
[362842017,1748485840930,-430.0,0.00020442,2]
[362842020,1748485840940,-430.0,0.00020443,2]
[362842023,1748485840950,-430.0,0.00020443,2]